[Event "Early-Titled-Tuesday-Blitz-May-07-2024"]
[Site "Chess.com"]
[Date "2024.05.07"]
[Round "5"]
[White "Kiborg95"]
[Black "h4parah5"]
[Result "1/2-1/2"]
[WhiteElo "2844"]
[BlackElo "3013"]
[TimeControl "180+1"]
[EndTime "8:59:34 PDT"]
[Termination "Game drawn by repetition"]

1. e4 {[%clk 0:02:59.7]} 1... c5 {[%clk 0:03:00]} 2. Nc3 {[%clk 0:02:59.8]} 2...
Nc6 {[%clk 0:03:00.1]} 3. Nge2 {[%clk 0:02:59.6]} 3... Nf6 {[%clk 0:02:59.6]} 4.
d4 {[%clk 0:02:58.8]} 4... cxd4 {[%clk 0:03:00.5]} 5. Nxd4 {[%clk 0:02:59.7]}
5... h5 {[%clk 0:03:00.3]} 6. Bc4 {[%clk 0:02:51.6]} 6... e6 {[%clk 0:03:00.3]}
7. Bf4 {[%clk 0:02:52.1]} 7... Bc5 {[%clk 0:02:59.5]} 8. Ndb5 {[%clk 0:02:48.9]}
8... O-O {[%clk 0:02:59]} 9. Bc7 {[%clk 0:02:42.3]} 9... Qe7 {[%clk 0:02:58.6]}
10. Bd6 {[%clk 0:02:42.8]} 10... Bxd6 {[%clk 0:02:58.3]} 11. Qxd6 {[%clk
0:02:43.7]} 11... Ne8 {[%clk 0:02:52.1]} 12. Qxe7 {[%clk 0:02:42.4]} 12... Nxe7
{[%clk 0:02:53]} 13. O-O-O {[%clk 0:02:37.6]} 13... f5 {[%clk 0:02:48.2]} 14.
exf5 {[%clk 0:02:04.1]} 14... Nxf5 {[%clk 0:02:41.4]} 15. Rhf1 {[%clk
0:01:48.8]} 15... a6 {[%clk 0:02:39.7]} 16. Nd4 {[%clk 0:01:49.1]} 16... b5
{[%clk 0:02:33]} 17. Nxf5 {[%clk 0:01:47.7]} 17... Rxf5 {[%clk 0:02:29.2]} 18.
Bd3 {[%clk 0:01:46.5]} 18... Rf8 {[%clk 0:02:21.9]} 19. Be4 {[%clk 0:01:45.1]}
19... Ra7 {[%clk 0:02:17.7]} 20. f3 {[%clk 0:01:36.4]} 20... h4 {[%clk
0:02:14.6]} 21. Bg6 {[%clk 0:01:30.6]} 21... Nc7 {[%clk 0:02:00.7]} 22. Ne4
{[%clk 0:01:21.6]} 22... Nd5 {[%clk 0:01:54.5]} 23. Nd6 {[%clk 0:01:20.7]} 23...
Ne3 {[%clk 0:01:51.9]} 24. Be4 {[%clk 0:01:11.1]} 24... Nxf1 {[%clk 0:01:50.6]}
25. Rxf1 {[%clk 0:01:12]} 25... Rd8 {[%clk 0:01:40.3]} 26. Rd1 {[%clk 0:01:09]}
26... Kf8 {[%clk 0:01:39.7]} 27. Kd2 {[%clk 0:01:00.5]} 27... Ke7 {[%clk
0:01:38.6]} 28. Ke3 {[%clk 0:01:01.2]} 28... Rc7 {[%clk 0:01:37]} 29. c3 {[%clk
0:01:01.5]} 29... Rf8 {[%clk 0:01:31.4]} 30. Rd4 {[%clk 0:00:57.8]} 30... g5
{[%clk 0:01:28.4]} 31. h3 {[%clk 0:00:57.6]} 31... Rf6 {[%clk 0:01:25.2]} 32.
Rd2 {[%clk 0:00:55.6]} 32... Rf8 {[%clk 0:01:20.7]} 33. a3 {[%clk 0:00:55.3]}
33... Rf6 {[%clk 0:01:09.9]} 34. Ke2 {[%clk 0:00:49.6]} 34... Rc5 {[%clk
0:01:04.4]} 35. Kd1 {[%clk 0:00:44.2]} 35... e5 {[%clk 0:00:56.4]} 36. Nf5+
{[%clk 0:00:43.9]} 36... Kd8 {[%clk 0:00:53.7]} 37. Nd6 {[%clk 0:00:43.6]} 37...
a5 {[%clk 0:00:33.3]} 38. Rd3 {[%clk 0:00:26]} 38... a4 {[%clk 0:00:32.4]} 39.
Rd2 {[%clk 0:00:23.2]} 39... Rf8 {[%clk 0:00:31.9]} 40. Ke1 {[%clk 0:00:21.9]}
40... Kc7 {[%clk 0:00:31.4]} 41. Kf2 {[%clk 0:00:19]} 41... Ba6 {[%clk
0:00:31.3]} 42. Ke3 {[%clk 0:00:19.1]} 42... Kd8 {[%clk 0:00:30]} 43. Kf2 {[%clk
0:00:19.2]} 43... Rc7 {[%clk 0:00:27.4]} 44. Ke3 {[%clk 0:00:19.4]} 44... Ke7
{[%clk 0:00:26]} 45. Nf5+ {[%clk 0:00:18]} 45... Rxf5 {[%clk 0:00:26.1]} 46.
Bxf5 {[%clk 0:00:18.3]} 46... d6 {[%clk 0:00:25.5]} 47. Rd5 {[%clk 0:00:17.7]}
47... Kf6 {[%clk 0:00:24.2]} 48. Bd3 {[%clk 0:00:18]} 48... Ke6 {[%clk
0:00:23.3]} 49. Be4 {[%clk 0:00:16.8]} 49... Ke7 {[%clk 0:00:14]} 50. Rd2 {[%clk
0:00:16.3]} 50... Rc5 {[%clk 0:00:13]} 51. Rd5 {[%clk 0:00:16.6]} 51... Rc7
{[%clk 0:00:10.3]} 52. Rd2 {[%clk 0:00:16.4]} 52... Rc5 {[%clk 0:00:10.5]} 53.
Rd5 {[%clk 0:00:16.6]} 53... Rc7 {[%clk 0:00:10.7]} 1/2-1/2

[Event "Early-Titled-Tuesday-Blitz-May-07-2024"]
[Site "Chess.com"]
[Date "2024.05.07"]
[Round "5"]
[White "MokshAD1603"]
[Black "Lady_Nika"]
[Result "1-0"]
[WhiteElo "2624"]
[BlackElo "2480"]
[TimeControl "180+1"]
[EndTime "8:59:35 PDT"]
[Termination "MokshAD1603 won by checkmate"]

1. d4 {[%clk 0:02:51.7]} 1... d5 {[%clk 0:02:59.8]} 2. Nf3 {[%clk 0:02:45.4]}
2... e6 {[%clk 0:02:59.7]} 3. c4 {[%clk 0:02:38.9]} 3... f5 {[%clk 0:02:57.7]}
4. Bg5 {[%clk 0:02:25.6]} 4... Nf6 {[%clk 0:02:57]} 5. Nbd2 {[%clk 0:02:23.7]}
5... Be7 {[%clk 0:02:56.9]} 6. g3 {[%clk 0:02:20.1]} 6... O-O {[%clk 0:02:56.9]}
7. Bg2 {[%clk 0:02:20.8]} 7... Ne4 {[%clk 0:02:57]} 8. Bxe7 {[%clk 0:02:21.1]}
8... Qxe7 {[%clk 0:02:57.9]} 9. O-O {[%clk 0:02:21.7]} 9... Nd7 {[%clk
0:02:57.8]} 10. Ne1 {[%clk 0:01:57.9]} 10... c6 {[%clk 0:02:47.5]} 11. e3 {[%clk
0:01:51.7]} 11... Nd6 {[%clk 0:02:44]} 12. Rc1 {[%clk 0:01:39.5]} 12... b6
{[%clk 0:02:38.2]} 13. Nd3 {[%clk 0:01:27.7]} 13... Ba6 {[%clk 0:02:32.2]} 14.
b3 {[%clk 0:01:28.4]} 14... Ne4 {[%clk 0:02:30.5]} 15. Nf3 {[%clk 0:01:27.1]}
15... Rac8 {[%clk 0:02:28.3]} 16. Re1 {[%clk 0:01:22.6]} 16... Rfd8 {[%clk
0:02:15.3]} 17. h4 {[%clk 0:01:20.5]} 17... c5 {[%clk 0:02:09.2]} 18. cxd5
{[%clk 0:01:20]} 18... exd5 {[%clk 0:02:07.9]} 19. Nf4 {[%clk 0:01:20.3]} 19...
Ndf6 {[%clk 0:02:06.6]} 20. Ne5 {[%clk 0:01:19.3]} 20... Bb7 {[%clk 0:01:51]}
21. Qd3 {[%clk 0:01:15.6]} 21... Nd7 {[%clk 0:01:16.7]} 22. Nxd7 {[%clk
0:01:09.3]} 22... Rxd7 {[%clk 0:01:16.3]} 23. dxc5 {[%clk 0:01:08.6]} 23... bxc5
{[%clk 0:01:12.4]} 24. Red1 {[%clk 0:01:08.5]} 24... Rcd8 {[%clk 0:01:12.2]} 25.
Qc2 {[%clk 0:01:05.7]} 25... Rc8 {[%clk 0:01:04.7]} 26. Qb2 {[%clk 0:01:03.2]}
26... a6 {[%clk 0:00:47]} 27. Qa3 {[%clk 0:01:02.3]} 27... Rcc7 {[%clk
0:00:40.7]} 28. Rc2 {[%clk 0:00:56.7]} 28... Qe5 {[%clk 0:00:33.7]} 29. Bxe4
{[%clk 0:00:53]} 29... dxe4 {[%clk 0:00:30.9]} 30. Rxd7 {[%clk 0:00:53.9]} 30...
Rxd7 {[%clk 0:00:31.2]} 31. Qxc5 {[%clk 0:00:54.2]} 31... Qa1+ {[%clk
0:00:10.6]} 32. Rc1 {[%clk 0:00:42.9]} 32... Qf6 {[%clk 0:00:08.5]} 33. Qc4+
{[%clk 0:00:42.8]} 33... Kh8 {[%clk 0:00:06.8]} 34. Qe6 {[%clk 0:00:41.9]} 34...
Qxe6 {[%clk 0:00:04.9]} 35. Nxe6 {[%clk 0:00:42.8]} 35... h6 {[%clk 0:00:04.8]}
36. Nd4 {[%clk 0:00:42.8]} 36... g6 {[%clk 0:00:03.5]} 37. h5 {[%clk 0:00:43.3]}
37... Kg7 {[%clk 0:00:03.1]} 38. hxg6 {[%clk 0:00:43.2]} 38... Kxg6 {[%clk
0:00:04]} 39. Rc5 {[%clk 0:00:43.5]} 39... Rf7 {[%clk 0:00:03.6]} 40. b4 {[%clk
0:00:43.6]} 40... h5 {[%clk 0:00:03.5]} 41. a4 {[%clk 0:00:41.7]} 41... Kg5
{[%clk 0:00:03.8]} 42. Ne6+ {[%clk 0:00:33.5]} 42... Kg4 {[%clk 0:00:04]} 43.
Nf4 {[%clk 0:00:34.4]} 43... h4 {[%clk 0:00:03.9]} 44. gxh4 {[%clk 0:00:30.4]}
44... Kxh4 {[%clk 0:00:04.8]} 45. Kf1 {[%clk 0:00:29.2]} 45... Rg7 {[%clk
0:00:04.6]} 46. Rxf5 {[%clk 0:00:27.6]} 46... Bc8 {[%clk 0:00:05]} 47. Rh5+
{[%clk 0:00:27.6]} 47... Kg4 {[%clk 0:00:05.1]} 48. Rh1 {[%clk 0:00:24.8]} 48...
Kf3 {[%clk 0:00:04.6]} 49. Rg1 {[%clk 0:00:25.4]} 49... Rc7 {[%clk 0:00:04.5]}
50. Rg3# {[%clk 0:00:25.3]} 1-0

[Event "Early-Titled-Tuesday-Blitz-May-07-2024"]
[Site "Chess.com"]
[Date "2024.05.07"]
[Round "5"]
[White "Supergiuly"]
[Black "ChessSwole"]
[Result "0-1"]
[WhiteElo "2340"]
[BlackElo "2635"]
[TimeControl "180+1"]
[EndTime "8:59:35 PDT"]
[Termination "ChessSwole won by resignation"]

1. g3 {[%clk 0:03:00.9]} 1... d5 {[%clk 0:02:58.7]} 2. Bg2 {[%clk 0:02:59.1]}
2... h5 {[%clk 0:02:58.9]} 3. Nf3 {[%clk 0:02:58.1]} 3... Nc6 {[%clk 0:02:57.6]}
4. O-O {[%clk 0:02:57.4]} 4... e5 {[%clk 0:02:57.7]} 5. d3 {[%clk 0:02:56.8]}
5... Be7 {[%clk 0:02:57.3]} 6. Nc3 {[%clk 0:02:56.1]} 6... h4 {[%clk 0:02:54.5]}
7. e4 {[%clk 0:02:53]} 7... h3 {[%clk 0:02:50.2]} 8. Bh1 {[%clk 0:02:52.4]} 8...
d4 {[%clk 0:02:45.1]} 9. Nd5 {[%clk 0:02:50.8]} 9... Be6 {[%clk 0:02:43.6]} 10.
Ng5 {[%clk 0:02:35.8]} 10... Bc8 {[%clk 0:02:10.3]} 11. f4 {[%clk 0:02:23.9]}
11... Nf6 {[%clk 0:02:02.1]} 12. fxe5 {[%clk 0:02:17.9]} 12... Nxe5 {[%clk
0:01:59.9]} 13. Bf4 {[%clk 0:02:16.7]} 13... Bg4 {[%clk 0:01:46.9]} 14. Qd2
{[%clk 0:02:08.3]} 14... Nxd5 {[%clk 0:01:45.6]} 15. exd5 {[%clk 0:02:03.8]}
15... O-O {[%clk 0:01:35.5]} 16. Be4 {[%clk 0:01:51.7]} 16... Ng6 {[%clk
0:01:20.6]} 17. Nxf7 {[%clk 0:01:45]} 17... Rxf7 {[%clk 0:01:17.9]} 18. Bxg6
{[%clk 0:01:44.6]} 18... Qxd5 {[%clk 0:01:10.1]} 19. Bxf7+ {[%clk 0:01:44]}
19... Qxf7 {[%clk 0:01:10.6]} 20. Bxc7 {[%clk 0:01:39.5]} 20... Qd5 {[%clk
0:01:09.4]} 21. Rf4 {[%clk 0:01:34.2]} 21... Bg5 {[%clk 0:01:06.1]} 22. Raf1
{[%clk 0:01:32.1]} 22... Re8 {[%clk 0:01:00.9]} 23. R1f2 {[%clk 0:00:49.2]}
23... Kh7 {[%clk 0:00:49.6]} 24. c4 {[%clk 0:00:40.5]} 24... Qc6 {[%clk
0:00:45.3]} 25. Qa5 {[%clk 0:00:32.6]} 25... Bxf4 {[%clk 0:00:30.9]} 26. Bxf4
{[%clk 0:00:31.1]} 26... Re2 {[%clk 0:00:21.8]} 27. Rxe2 {[%clk 0:00:26.3]}
27... Bxe2 {[%clk 0:00:22.7]} 28. Qf5+ {[%clk 0:00:25.7]} 28... Kg8 {[%clk
0:00:19.5]} 29. Qxh3 {[%clk 0:00:24.9]} 29... Bxd3 {[%clk 0:00:17.4]} 30. b3
{[%clk 0:00:24.8]} 30... Qf3 {[%clk 0:00:14.8]} 31. Qc8+ {[%clk 0:00:24.1]}
31... Kh7 {[%clk 0:00:15.4]} 32. Qh3+ {[%clk 0:00:23.3]} 32... Kg6 {[%clk
0:00:16.1]} 33. Qe6+ {[%clk 0:00:22.7]} 33... Kh7 {[%clk 0:00:15.1]} 34. Qh3+
{[%clk 0:00:21.9]} 34... Kg8 {[%clk 0:00:15.6]} 35. Qe6+ {[%clk 0:00:21.7]}
35... Kh8 {[%clk 0:00:15.1]} 36. Qe8+ {[%clk 0:00:20.5]} 36... Kh7 {[%clk
0:00:14.6]} 37. Qe1 {[%clk 0:00:19.2]} 37... Be2 {[%clk 0:00:13.7]} 38. a3
{[%clk 0:00:17.3]} 38... d3 {[%clk 0:00:14.1]} 39. Bd2 {[%clk 0:00:16.6]} 39...
b6 {[%clk 0:00:12.2]} 40. b4 {[%clk 0:00:16.5]} 40... Qe4 {[%clk 0:00:11.7]} 41.
c5 {[%clk 0:00:15.4]} 41... bxc5 {[%clk 0:00:11.5]} 42. bxc5 {[%clk 0:00:16.3]}
42... Qd4+ {[%clk 0:00:11.9]} 43. Qf2 {[%clk 0:00:16.4]} 43... Qa1+ {[%clk
0:00:12.5]} 44. Kg2 {[%clk 0:00:16.5]} 44... Bg4 {[%clk 0:00:09.4]} 45. h3
{[%clk 0:00:14.8]} 45... Be6 {[%clk 0:00:08.8]} 46. Bb4 {[%clk 0:00:10.6]} 46...
Bd5+ {[%clk 0:00:08.8]} 0-1

[Event "Early-Titled-Tuesday-Blitz-May-07-2024"]
[Site "Chess.com"]
[Date "2024.05.07"]
[Round "5"]
[White "Gryffindorac8"]
[Black "KogotBobra17"]
[Result "0-1"]
[WhiteElo "2520"]
[BlackElo "2732"]
[TimeControl "180+1"]
[EndTime "8:59:36 PDT"]
[Termination "KogotBobra17 won by resignation"]

1. d4 {[%clk 0:03:00.9]} 1... Nf6 {[%clk 0:02:59.9]} 2. c4 {[%clk 0:03:01]} 2...
e5 {[%clk 0:03:00.1]} 3. dxe5 {[%clk 0:02:59.9]} 3... Ng4 {[%clk 0:03:00.7]} 4.
Nf3 {[%clk 0:02:58.4]} 4... Bc5 {[%clk 0:03:01]} 5. e3 {[%clk 0:02:57.6]} 5...
Nc6 {[%clk 0:02:59.4]} 6. Nc3 {[%clk 0:02:46.9]} 6... O-O {[%clk 0:02:50.2]} 7.
Be2 {[%clk 0:02:45.4]} 7... Re8 {[%clk 0:02:43.1]} 8. O-O {[%clk 0:02:43.6]}
8... Ngxe5 {[%clk 0:02:40]} 9. Nxe5 {[%clk 0:02:42.8]} 9... Nxe5 {[%clk
0:02:40.9]} 10. b3 {[%clk 0:02:41.1]} 10... a5 {[%clk 0:02:41]} 11. Bb2 {[%clk
0:02:28.4]} 11... Ra6 {[%clk 0:02:39.6]} 12. Ne4 {[%clk 0:02:18]} 12... Ba7
{[%clk 0:02:39.4]} 13. Ng3 {[%clk 0:02:03.5]} 13... Rh6 {[%clk 0:02:34.4]} 14.
Qd5 {[%clk 0:01:52.8]} 14... d6 {[%clk 0:02:32.9]} 15. Qxa5 {[%clk 0:01:42]}
15... Bc5 {[%clk 0:02:20.5]} 16. Rfd1 {[%clk 0:01:31.1]} 16... Qh4 {[%clk
0:02:19.6]} 17. Nf1 {[%clk 0:01:29.4]} 17... Rf6 {[%clk 0:01:18.4]} 18. Qe1
{[%clk 0:01:08.9]} 18... Bb4 {[%clk 0:01:18.4]} 19. Nd2 {[%clk 0:00:56.5]} 19...
Rh6 {[%clk 0:01:17.8]} 20. Bxe5 {[%clk 0:00:46.5]} 20... dxe5 {[%clk 0:01:13.8]}
21. Nf3 {[%clk 0:00:43.9]} 21... Qe7 {[%clk 0:01:13.5]} 22. Qf1 {[%clk
0:00:40.1]} 22... e4 {[%clk 0:01:12.2]} 23. Nd4 {[%clk 0:00:34.6]} 23... Bd6
{[%clk 0:01:11.7]} 24. g3 {[%clk 0:00:24.8]} 24... Bh3 {[%clk 0:01:10.1]} 25.
Qe1 {[%clk 0:00:25]} 25... Bb4 {[%clk 0:01:10.7]} 26. Rd2 {[%clk 0:00:22.2]}
26... Bxd2 {[%clk 0:01:06.4]} 27. Qxd2 {[%clk 0:00:23.1]} 27... Qd7 {[%clk
0:01:06.1]} 28. Rd1 {[%clk 0:00:18.9]} 28... Bg4 {[%clk 0:01:05.9]} 29. Bxg4
{[%clk 0:00:15.7]} 29... Qxg4 {[%clk 0:01:05.1]} 30. Qe2 {[%clk 0:00:09.1]}
30... Qh3 {[%clk 0:01:04.3]} 31. f4 {[%clk 0:00:07.4]} 31... exf3 {[%clk
0:01:05.2]} 32. Nxf3 {[%clk 0:00:06.4]} 32... Qf5 {[%clk 0:00:59.4]} 33. Re1
{[%clk 0:00:06.1]} 33... Qc5 {[%clk 0:00:56.3]} 34. Kg2 {[%clk 0:00:06.4]} 34...
Rhe6 {[%clk 0:00:56]} 35. Qf2 {[%clk 0:00:04.6]} 35... Rxe3 {[%clk 0:00:54.1]}
36. Rxe3 {[%clk 0:00:05.3]} 36... Qxe3 {[%clk 0:00:55]} 37. Qf1 {[%clk
0:00:05.3]} 37... Qe2+ {[%clk 0:00:54.7]} 38. Qf2 {[%clk 0:00:04.6]} 38... Re3
{[%clk 0:00:49.5]} 39. h4 {[%clk 0:00:03.6]} 39... Qxf2+ {[%clk 0:00:49.2]} 40.
Kxf2 {[%clk 0:00:04.5]} 40... Rc3 {[%clk 0:00:49.7]} 41. Ne1 {[%clk 0:00:05]}
41... Rc1 {[%clk 0:00:49.4]} 42. Ke2 {[%clk 0:00:05]} 42... Ra1 {[%clk
0:00:49.5]} 43. a4 {[%clk 0:00:04.7]} 43... Rb1 {[%clk 0:00:50]} 44. Nd3 {[%clk
0:00:04.7]} 44... Rxb3 {[%clk 0:00:50.3]} 45. Nc5 {[%clk 0:00:05.2]} 45... Rb4
{[%clk 0:00:50.8]} 46. a5 {[%clk 0:00:05.4]} 46... b6 {[%clk 0:00:46.3]} 47.
axb6 {[%clk 0:00:05.5]} 47... cxb6 {[%clk 0:00:46]} 48. Nd7 {[%clk 0:00:06.2]}
48... Rxc4 {[%clk 0:00:46.3]} 49. Nxb6 {[%clk 0:00:06.2]} 49... Rd4 {[%clk
0:00:45.7]} 50. Kf3 {[%clk 0:00:06]} 50... f6 {[%clk 0:00:44.9]} 51. Ke3 {[%clk
0:00:06.1]} 51... Rb4 {[%clk 0:00:44.2]} 52. Nd5 {[%clk 0:00:05.4]} 52... Rb3+
{[%clk 0:00:44.7]} 53. Kf2 {[%clk 0:00:05.4]} 53... Kf7 {[%clk 0:00:45.1]} 54.
Ne3 {[%clk 0:00:05.7]} 54... g5 {[%clk 0:00:43.7]} 55. hxg5 {[%clk 0:00:05.6]}
55... fxg5 {[%clk 0:00:44.6]} 56. Ng2 {[%clk 0:00:06.1]} 56... Kg6 {[%clk
0:00:44.7]} 57. Ne1 {[%clk 0:00:06.2]} 57... h5 {[%clk 0:00:44.5]} 58. Kg2
{[%clk 0:00:06.2]} 58... Kf5 {[%clk 0:00:43.7]} 59. Kf2 {[%clk 0:00:06.4]} 59...
Kg4 {[%clk 0:00:43.7]} 60. Nc2 {[%clk 0:00:04.4]} 60... Rb2 {[%clk 0:00:43.7]}
0-1

[Event "Early-Titled-Tuesday-Blitz-May-07-2024"]
[Site "Chess.com"]
[Date "2024.05.07"]
[Round "5"]
[White "Slovineanu"]
[Black "littlepinkyboy"]
[Result "0-1"]
[WhiteElo "2451"]
[BlackElo "2650"]
[TimeControl "180+1"]
[EndTime "8:59:37 PDT"]
[Termination "littlepinkyboy won on time"]

1. e4 {[%clk 0:02:59.2]} 1... c5 {[%clk 0:02:59.3]} 2. Nf3 {[%clk 0:02:58.8]}
2... e6 {[%clk 0:02:59.4]} 3. d4 {[%clk 0:02:58.1]} 3... cxd4 {[%clk 0:03:00.3]}
4. Nxd4 {[%clk 0:02:58.5]} 4... Nc6 {[%clk 0:03:00.7]} 5. Nc3 {[%clk 0:02:58.6]}
5... Qc7 {[%clk 0:03:01.2]} 6. Be3 {[%clk 0:02:57.4]} 6... Nf6 {[%clk
0:03:01.5]} 7. f3 {[%clk 0:02:57.6]} 7... a6 {[%clk 0:02:57.7]} 8. Qd2 {[%clk
0:02:56.9]} 8... b5 {[%clk 0:02:58.1]} 9. O-O-O {[%clk 0:02:54.7]} 9... Bb7
{[%clk 0:02:58.3]} 10. Kb1 {[%clk 0:02:54.4]} 10... Be7 {[%clk 0:02:54.2]} 11.
g4 {[%clk 0:02:51]} 11... Ne5 {[%clk 0:02:19.3]} 12. Be2 {[%clk 0:02:34.5]}
12... b4 {[%clk 0:02:12.5]} 13. Na4 {[%clk 0:02:28.7]} 13... d5 {[%clk 0:02:13]}
14. g5 {[%clk 0:02:23.1]} 14... Nfd7 {[%clk 0:02:12.3]} 15. f4 {[%clk
0:02:10.3]} 15... Nc4 {[%clk 0:02:10.6]} 16. Bxc4 {[%clk 0:02:07.2]} 16... dxc4
{[%clk 0:02:11.5]} 17. f5 {[%clk 0:01:51.2]} 17... e5 {[%clk 0:02:01.2]} 18. Ne6
{[%clk 0:00:52.1]} 18... fxe6 {[%clk 0:01:52]} 19. fxe6 {[%clk 0:00:52.3]} 19...
Nf8 {[%clk 0:01:47.6]} 20. Qf2 {[%clk 0:00:40.9]} 20... Nxe6 {[%clk 0:01:42.7]}
21. Nb6 {[%clk 0:00:37.2]} 21... Rd8 {[%clk 0:01:28.8]} 22. Qf5 {[%clk
0:00:32.9]} 22... Nd4 {[%clk 0:00:51.3]} 23. Bxd4 {[%clk 0:00:27]} 23... Rxd4
{[%clk 0:00:42.7]} 24. Nd5 {[%clk 0:00:17.7]} 24... Bxd5 {[%clk 0:00:35.3]} 25.
exd5 {[%clk 0:00:17.4]} 25... Rxd1+ {[%clk 0:00:24.1]} 26. Rxd1 {[%clk 0:00:17]}
26... Qd6 {[%clk 0:00:24.6]} 27. Qc8+ {[%clk 0:00:14.5]} 27... Bd8 {[%clk
0:00:25.1]} 28. Qxc4 {[%clk 0:00:13]} 28... Rf8 {[%clk 0:00:24.3]} 29. Qe4
{[%clk 0:00:11.2]} 29... g6 {[%clk 0:00:22.3]} 30. Qh4 {[%clk 0:00:09.9]} 30...
Rf7 {[%clk 0:00:20.1]} 31. b3 {[%clk 0:00:10.1]} 31... a5 {[%clk 0:00:16.5]} 32.
Qe4 {[%clk 0:00:08.3]} 32... Bxg5 {[%clk 0:00:13.9]} 33. h4 {[%clk 0:00:07.7]}
33... Bd8 {[%clk 0:00:12.8]} 34. h5 {[%clk 0:00:08.3]} 34... gxh5 {[%clk
0:00:12.1]} 35. Rg1 {[%clk 0:00:07.6]} 35... Qf6 {[%clk 0:00:04.9]} 36. Rg8+
{[%clk 0:00:06.2]} 36... Kd7 {[%clk 0:00:05.4]} 37. Kb2 {[%clk 0:00:02.1]} 37...
Qf4 {[%clk 0:00:04.4]} 38. Qe2 {[%clk 0:00:01.6]} 38... Qd4+ {[%clk 0:00:04.4]}
39. Kb1 {[%clk 0:00:00.6]} 39... Qxd5 {[%clk 0:00:03.4]} 0-1

[Event "Early-Titled-Tuesday-Blitz-May-07-2024"]
[Site "Chess.com"]
[Date "2024.05.07"]
[Round "5"]
[White "Yerkinio"]
[Black "kekic76"]
[Result "1-0"]
[WhiteElo "2659"]
[BlackElo "2343"]
[TimeControl "180+1"]
[EndTime "8:59:37 PDT"]
[Termination "Yerkinio won on time"]

1. e4 {[%clk 0:03:00.9]} 1... c6 {[%clk 0:02:58.1]} 2. d4 {[%clk 0:02:59.7]}
2... d5 {[%clk 0:02:56.5]} 3. e5 {[%clk 0:02:58.2]} 3... Bf5 {[%clk 0:02:49]} 4.
h4 {[%clk 0:02:57.7]} 4... h5 {[%clk 0:02:46.9]} 5. Bd3 {[%clk 0:02:57.3]} 5...
Bxd3 {[%clk 0:02:46.7]} 6. Qxd3 {[%clk 0:02:58.2]} 6... e6 {[%clk 0:02:46]} 7.
Bg5 {[%clk 0:02:57.2]} 7... Be7 {[%clk 0:02:46.4]} 8. Nf3 {[%clk 0:02:53]} 8...
Nd7 {[%clk 0:02:46.6]} 9. Nbd2 {[%clk 0:02:49.8]} 9... Bxg5 {[%clk 0:02:38.8]}
10. Nxg5 {[%clk 0:02:50.7]} 10... Ne7 {[%clk 0:02:39.4]} 11. Nf1 {[%clk
0:02:50]} 11... Nf5 {[%clk 0:02:38.2]} 12. Ng3 {[%clk 0:02:50.1]} 12... g6
{[%clk 0:02:38]} 13. Nxf5 {[%clk 0:02:46.6]} 13... gxf5 {[%clk 0:02:34.5]} 14.
f4 {[%clk 0:02:32.4]} 14... Kf8 {[%clk 0:02:34.7]} 15. O-O {[%clk 0:02:28.3]}
15... Kg7 {[%clk 0:02:32.5]} 16. b3 {[%clk 0:02:28.4]} 16... Nf8 {[%clk
0:02:32]} 17. c4 {[%clk 0:02:27.8]} 17... Ng6 {[%clk 0:02:31.4]} 18. g3 {[%clk
0:02:27.9]} 18... dxc4 {[%clk 0:02:25.6]} 19. bxc4 {[%clk 0:02:27.4]} 19... Qd7
{[%clk 0:02:21.4]} 20. Rfd1 {[%clk 0:02:24]} 20... Rad8 {[%clk 0:02:15.1]} 21.
Rab1 {[%clk 0:02:24.3]} 21... b6 {[%clk 0:02:03.2]} 22. Qc3 {[%clk 0:02:23.4]}
22... Qe7 {[%clk 0:01:57.6]} 23. a4 {[%clk 0:02:20]} 23... Qc7 {[%clk
0:01:32.4]} 24. Rd3 {[%clk 0:02:14.2]} 24... Rd7 {[%clk 0:01:28.9]} 25. Rbd1
{[%clk 0:02:13.7]} 25... Rhd8 {[%clk 0:01:28.3]} 26. Kg2 {[%clk 0:02:08.9]}
26... Qb7 {[%clk 0:01:13.5]} 27. Kh2 {[%clk 0:02:04.4]} 27... Qc7 {[%clk
0:01:08.4]} 28. Qb2 {[%clk 0:02:02]} 28... Qb7 {[%clk 0:00:57.5]} 29. Qg2 {[%clk
0:01:47.3]} 29... Qa6 {[%clk 0:00:49.1]} 30. Qc2 {[%clk 0:01:39.7]} 30... Qb7
{[%clk 0:00:46.9]} 31. Qe2 {[%clk 0:01:39.5]} 31... Qa6 {[%clk 0:00:31.1]} 32.
Qc2 {[%clk 0:01:24.4]} 32... Qb7 {[%clk 0:00:30.4]} 33. Qb3 {[%clk 0:01:17.8]}
33... Qc7 {[%clk 0:00:20.6]} 34. Kh3 {[%clk 0:01:17.7]} 34... Qb7 {[%clk
0:00:19.5]} 35. Qa2 {[%clk 0:01:18.3]} 35... Qc7 {[%clk 0:00:17.4]} 36. d5
{[%clk 0:01:17.9]} 36... cxd5 {[%clk 0:00:17]} 37. cxd5 {[%clk 0:01:18.8]} 37...
exd5 {[%clk 0:00:14.6]} 38. Rxd5 {[%clk 0:01:19.7]} 38... Rxd5 {[%clk
0:00:14.6]} 39. Rxd5 {[%clk 0:01:20.6]} 39... Rxd5 {[%clk 0:00:08.4]} 40. Qxd5
{[%clk 0:01:21.5]} 40... Qe7 {[%clk 0:00:06.3]} 41. Qd3 {[%clk 0:01:16.3]} 41...
Qc5 {[%clk 0:00:05.6]} 42. Qxf5 {[%clk 0:01:14.9]} 42... Qe7 {[%clk 0:00:02]}
43. e6 {[%clk 0:01:09.6]} 43... fxe6 {[%clk 0:00:00.7]} 44. Nxe6+ {[%clk
0:01:09.7]} 44... Kh6 {[%clk 0:00:01.2]} 45. Qg5+ {[%clk 0:01:06.5]} 45... Qxg5
{[%clk 0:00:01.5]} 46. hxg5+ {[%clk 0:01:07.4]} 46... Kh7 {[%clk 0:00:01.1]} 47.
f5 {[%clk 0:01:07.9]} 47... Ne5 {[%clk 0:00:00.5]} 48. Kh4 {[%clk 0:01:07.4]}
48... Kg8 {[%clk 0:00:01.4]} 49. Kxh5 {[%clk 0:01:06.4]} 49... Nf3 {[%clk
0:00:02.3]} 50. Nf4 {[%clk 0:01:00.7]} 50... a6 {[%clk 0:00:02.4]} 51. Nd5
{[%clk 0:01:00.6]} 51... b5 {[%clk 0:00:02.7]} 52. axb5 {[%clk 0:01:01.5]} 52...
axb5 {[%clk 0:00:02.5]} 53. g6 {[%clk 0:00:58.7]} 53... Ne5 {[%clk 0:00:01.4]}
54. f6 {[%clk 0:00:55.6]} 54... Kf8 {[%clk 0:00:01.5]} 55. g4 {[%clk 0:00:53.9]}
55... Nf3 {[%clk 0:00:01.1]} 56. Kh6 {[%clk 0:00:48.4]} 56... Ne5 {[%clk
0:00:00.4]} 57. Kh7 {[%clk 0:00:45.3]} 1-0